fUSD/lending_fUSD_20241224
["ID","MTS","AMOUNT","RATE_DAILY","PERIOD"]
[346485011,1735005036531,-500.0,0.00013698,2]
[346485012,1735005036540,-1546.96,0.00013698,2]
[346485013,1735005036549,-500.0,0.00013698,2]
[346485014,1735005036558,-752.45,0.00013698,2]
[346485015,1735005036567,-2563.42,0.00013698,2]
[346485016,1735005036575,-1041.94,0.00013698,2]
[346485017,1735005036589,-1709.72,0.00013698,2]
[346485018,1735005036597,-804.78,0.00013698,2]
[346485019,1735005036607,-500.0,0.00013698,2]
[346485020,1735005036615,-668.4,0.00013698,2]
[346485021,1735005036624,-500.0,0.00013698,2]
[346485022,1735005036636,-3469.16,0.00013698,2]
[346485023,1735005036645,-2738.29,0.00013698,2]
[346485024,1735005036654,-500.0,0.00013698,2]
[346485025,1735005036671,-500.0,0.00013698,2]
[346485026,1735005036692,-500.0,0.00013698,2]
[346485027,1735005036709,-500.0,0.00013698,2]
[346485028,1735005036719,-3816.71,0.00013698,2]
[346485029,1735005036731,-5074.14,0.00013698,2]
[346485030,1735005036741,-1092.78,0.00013698,2]
[346485031,1735005036752,-848.39,0.00013698,2]
[346485032,1735005036761,-500.0,0.00013698,2]
[346485033,1735005036770,-1114.73,0.00013698,2]
[346485034,1735005036779,-607.64,0.00013698,2]
[346485035,1735005036788,-696.24,0.00013698,2]
[346485036,1735005036798,-5433.97,0.00013698,2]
[346485037,1735005036807,-1642.69,0.00013698,2]
[346485038,1735005036817,-500.0,0.00013698,2]
[346485039,1735005036826,-1378.86,0.00013698,2]
[346485040,1735005036835,-659.07,0.00013698,2]
[346485041,1735005036844,-4674.42,0.00013698,2]
[346485042,1735005036853,-500.0,0.00013698,2]
[346485043,1735005036862,-500.0,0.00013698,2]
[346485044,1735005036872,-500.0,0.00013698,2]
[346485045,1735005036880,-500.0,0.00013698,2]
[346485046,1735005036890,-933.15,0.00013698,2]
[346485047,1735005036899,-500.0,0.00013698,2]
[346485048,1735005036908,-2979.44,0.00013698,2]
[346485049,1735005036918,-500.0,0.00013698,2]
[346485050,1735005036927,-500.0,0.00013698,2]
[346485051,1735005036937,-913.79,0.00013698,2]
[346485052,1735005036946,-612.5,0.00013698,2]
[346485053,1735005036955,-695.35,0.00013698,2]
[346485054,1735005036964,-500.0,0.00013698,2]
[346485055,1735005036974,-500.0,0.00013698,2]
[346485056,1735005036983,-1278.65,0.00013698,2]
[346485057,1735005036993,-425.54222003,0.00013698,2]
[346485058,1735005037003,-669.49,0.00013698,2]
[346485059,1735005037012,-1389.88,0.00013698,2]
[346485060,1735005037022,-500.0,0.00013698,2]
[346485061,1735005037032,-500.0,0.00013698,2]
[346485062,1735005037041,-500.0,0.00013698,2]
[346485063,1735005037050,-500.0,0.00013698,2]
[346485064,1735005037060,-784.44,0.00013698,2]
[346485065,1735005037069,-585.56,0.00013698,2]
[346485066,1735005037078,-1193.83,0.00013698,2]
[346485067,1735005037088,-2714.86,0.00013698,2]
[346485068,1735005037101,-1370.31,0.00013698,2]
[346485069,1735005037111,-1153.2,0.00013698,2]
[346485070,1735005037120,-5291.92,0.00013698,2]
[346485071,1735005037130,-500.0,0.00013698,2]
[346485072,1735005037139,-553.18,0.00013698,2]
[346485073,1735005037149,-1227.36,0.00013698,2]
[346485074,1735005037158,-2448.17,0.00013698,2]
[346485075,1735005037167,-1405.68,0.00013698,2]
[346485076,1735005037176,-811.82,0.00013698,2]
[346485077,1735005037186,-500.0,0.00013698,2]
[346485078,1735005037195,-585.81,0.00013698,2]
[346485079,1735005037205,-4892.64,0.00013698,2]
[346485080,1735005037214,-500.0,0.00013698,2]
[346485081,1735005037223,-597.78,0.00013698,2]
[346485082,1735005037233,-579.66,0.00013698,2]
[346485083,1735005037243,-2485.29,0.00013698,2]
[346485084,1735005037252,-500.0,0.00013698,2]
[346485085,1735005037261,-500.0,0.00013698,2]
[346485086,1735005037270,-500.0,0.00013698,2]
[346485087,1735005037280,-500.0,0.00013698,2]
[346485088,1735005037288,-530.34,0.00013698,2]
[346485089,1735005037298,-500.0,0.00013698,2]
[346485090,1735005037307,-877.29,0.00013698,2]
[346485091,1735005037316,-500.0,0.00013698,2]
[346485092,1735005037325,-729.91,0.00013698,2]
[346485093,1735005037335,-500.0,0.00013698,2]
[346485094,1735005037344,-500.0,0.00013698,2]
[346485095,1735005037353,-3934.87,0.00013698,2]
[346485096,1735005037362,-1139.75,0.00013698,2]
[346485097,1735005037371,-688.23,0.00013698,2]
[346485098,1735005037381,-1052.51,0.00013698,2]
[346485099,1735005037390,-619.96190569,0.00013698,2]
[346485100,1735005037400,-500.0,0.00013698,2]
[346485101,1735005037409,-1908.23,0.00013698,2]
[346485102,1735005037418,-1987.66,0.00013698,2]
[346485103,1735005037428,-11597.28,0.00013698,2]
[346485104,1735005037437,-500.0,0.00013698,2]
[346485105,1735005037446,-896.91,0.00013698,2]
[346485106,1735005037455,-609.73,0.00013698,2]
[346485107,1735005037465,-500.0,0.00013698,2]
[346485108,1735005037474,-669.7607294,0.00013698,2]
[346485109,1735005037488,-290.92276336,0.00013698,2]
[346485110,1735005037500,-1407.06112803,0.00013698,2]
[346485111,1735005037511,-120.34537921,0.00013698,2]
[346485112,1735005037520,-814.85,0.00013698,2]
[346485113,1735005037530,-12.11477513,0.00013698,2]
[346485118,1735005037981,-1504.64522487,0.00013698,2]
[346485119,1735005037991,-500.0,0.00013698,2]
[346485120,1735005038000,-2185.79,0.00013698,2]
[346485121,1735005038010,-280.756357,0.00013698,2]
[346485122,1735005038019,-1678.62,0.00013698,2]
[346485123,1735005038029,-1022.32,0.00013698,2]
[346485124,1735005038038,-500.0,0.00013698,2]
[346485125,1735005038047,-650.09,0.00013698,2]
[346485126,1735005038057,-1888.37,0.00013698,2]
[346485127,1735005038066,-14322.6073791,0.00013698,2]
[346485128,1735005038078,-334.7926209,0.00013698,2]
[346485129,1735005038087,-3243.17,0.00013698,2]
[346485130,1735005038096,-500.0,0.00013698,2]
[346485131,1735005038106,-187.973417,0.00013698,2]
[346485132,1735005038115,-527.7639621,0.00013698,2]
[346485134,1735005038127,-2013.1960379,0.00013698,2]
[346485135,1735005038136,-704.17,0.00013698,2]
[346485136,1735005038146,-1727.96,0.00013698,2]
[346485137,1735005038155,-686.00662208,0.00013698,2]
[346485138,1735005038166,-376.81337792,0.00013698,2]
[346485139,1735005038177,-1895.88,0.00013698,2]
[346485140,1735005038186,-500.0,0.00013698,2]
[346485141,1735005038196,-500.0,0.00013698,2]
[346485142,1735005038205,-3953.74851087,0.00013698,2]
[346485143,1735005038267,-610.56,0.00013698,2]
[346485144,1735005038278,-6382.29148913,0.00013698,2]
[346485145,1735005038288,-500.0,0.00013698,2]
[346485146,1735005038297,-500.0,0.00013698,2]
[346485147,1735005038307,-500.0,0.00013698,2]
[346485148,1735005038316,-500.0,0.00013698,2]
[346485149,1735005038325,-801.3,0.00013698,2]
[346485150,1735005038334,-1281.75,0.00013698,2]
[346485151,1735005038344,-2461.32,0.00013698,2]
[346485152,1735005038354,-158.36877653,0.00013698,2]
[346485153,1735005038363,-1593.46,0.00013698,2]
[346485154,1735005038373,-1018.19,0.00013698,2]
[346485155,1735005038382,-2616.13,0.00013698,2]
[346485156,1735005038391,-2146.91,0.00013698,2]
[346485157,1735005038401,-797.75,0.00013698,2]
[346485158,1735005038411,-500.0,0.00013698,2]
[346485159,1735005038420,-692.13,0.00013698,2]
[346485160,1735005038429,-4194.63,0.00013698,2]
[346485161,1735005038439,-1202.80033434,0.00013698,2]
[346485162,1735005038451,-3618.55966566,0.00013698,2]
[346485163,1735005038460,-500.0,0.00013698,2]
[346485164,1735005038469,-500.0,0.00013698,2]
[346485165,1735005038478,-500.0,0.00013698,2]
[346485166,1735005038488,-500.0,0.00013698,2]
[346485167,1735005038497,-1512.8,0.00013698,2]
[346485168,1735005038506,-4895.69,0.00013698,2]
[346485169,1735005038516,-2648.48,0.00013698,2]
[346485171,1735005038525,-9741.7,0.00013698,2]
[346485173,1735005038534,-5171.93,0.00013698,2]
[346485175,1735005038543,-2364.98,0.00013698,2]
[346485177,1735005038553,-1469.27,0.00013698,2]
[346485179,1735005038562,-816.28,0.00013698,2]
[346485181,1735005038571,-558.89,0.00013698,2]
[346485183,1735005038581,-500.0,0.00013698,2]
[346485185,1735005038595,-655.72,0.00013698,2]
[346485187,1735005038604,-500.0,0.00013698,2]
[346485189,1735005038613,-922.18,0.00013698,2]
[346485191,1735005038622,-2902.47,0.00013698,2]
[346485193,1735005038633,-2732.78,0.00013698,2]
[346485195,1735005038642,-3400.08,0.00013698,2]
[346485196,1735005038651,-2750.89,0.00013698,2]
[346485199,1735005038661,-705.21,0.00013698,2]
[346485200,1735005038671,-500.0,0.00013698,2]
[346485203,1735005038681,-1398.29,0.00013698,2]
[346485205,1735005038690,-504.35852773,0.00013698,2]
[346485207,1735005038700,-690.07,0.00013698,2]
[346485209,1735005038709,-3550.74,0.00013698,2]
[346485211,1735005038718,-7358.06,0.00013698,2]
[346485213,1735005038727,-500.0,0.00013698,2]
[346485215,1735005038736,-7630.33,0.00013698,2]
[346485217,1735005038745,-2844.56,0.00013698,2]
[346485218,1735005038755,-500.0,0.00013698,2]
[346485220,1735005038764,-4920.38,0.00013698,2]
[346485222,1735005038774,-588.79,0.00013698,2]
[346485224,1735005038783,-500.0,0.00013698,2]
[346485226,1735005038792,-500.0,0.00013698,2]
[346485228,1735005038801,-551.98,0.00013698,2]
[346485230,1735005038811,-1774.07,0.00013698,2]
[346485232,1735005038820,-2733.22,0.00013698,2]
[346485234,1735005038829,-504.36613944,0.00013698,2]
[346485236,1735005038839,-6900.18,0.00013698,2]
[346485238,1735005038848,-500.0,0.00013698,2]
[346485240,1735005038857,-311.61334145,0.00013698,2]
[346485242,1735005038867,-2480.31,0.00013698,2]
[346485244,1735005038876,-500.0,0.00013698,2]
[346485247,1735005038886,-3474.2,0.00013698,2]
[346485249,1735005038895,-734.92,0.00013698,2]
[346485250,1735005038905,-503.26803898,0.00013698,2]
[346485253,1735005038915,-1780.75,0.00013698,2]
[346485254,1735005038923,-4667.76,0.00013698,2]
[346485256,1735005038932,-500.0,0.00013698,2]
[346485258,1735005038942,-1065.87,0.00013698,2]
[346485271,1735005039031,-500.0,0.00013698,2]
[346485275,1735005039077,-2502.73,0.00013698,2]
[346485277,1735005039087,-1092.5,0.00013698,2]
[346485279,1735005039096,-640.4,0.00013698,2]
[346485281,1735005039107,-812.98,0.00013698,2]
[346485283,1735005039116,-4818.52,0.00013698,2]
[346485285,1735005039125,-500.0,0.00013698,2]
[346485287,1735005039134,-500.0,0.00013698,2]
[346485289,1735005039143,-4790.04,0.00013698,2]
[346485291,1735005039152,-500.0,0.00013698,2]
[346485292,1735005039162,-500.0,0.00013698,2]
[346485295,1735005039171,-792.53,0.00013698,2]
[346485296,1735005039181,-1597.8,0.00013698,2]
[346485298,1735005039190,-561.07,0.00013698,2]
[346485300,1735005039200,-1046.04,0.00013698,2]
[346485302,1735005039209,-500.0,0.00013698,2]
[346485304,1735005039219,-7741.49,0.00013698,2]
[346485307,1735005039228,-500.0,0.00013698,2]
[346485309,1735005039239,-27394.69,0.00013698,2]
[346485311,1735005039248,-2042.85,0.00013698,2]
[346485313,1735005039258,-850.78,0.00013698,2]
[346485315,1735005039267,-538.72,0.00013698,2]
[346485317,1735005039276,-791.4,0.00013698,2]
[346485319,1735005039285,-928.03,0.00013698,2]
[346485321,1735005039294,-3390.93,0.00013698,2]
[346485323,1735005039303,-250.12279235,0.00013698,2]
[346485325,1735005039313,-1442.52,0.00013698,2]
[346485327,1735005039322,-23650.05,0.00013698,2]
[346485329,1735005039331,-500.0,0.00013698,2]
[346485331,1735005039340,-722.19,0.00013698,2]
[346485333,1735005039349,-1080.02,0.00013698,2]
[346485335,1735005039358,-3243.29,0.00013698,2]
[346485337,1735005039368,-1199.41,0.00013698,2]
[346485339,1735005039377,-2927.94,0.00013698,2]
[346485340,1735005039386,-505.71305123,0.00013698,2]
[346485342,1735005039395,-500.0,0.00013698,2]
[346485344,1735005039405,-500.0,0.00013698,2]
[346485346,1735005039415,-2262.24,0.00013698,2]
[346485348,1735005039424,-500.0,0.00013698,2]
[346485350,1735005039433,-676.43,0.00013698,2]
[346485352,1735005039443,-500.0,0.00013698,2]
[346485354,1735005039452,-16800.47,0.00013698,2]
[346485356,1735005039461,-3270.13,0.00013698,2]
[346485358,1735005039471,-1142.09,0.00013698,2]
[346485360,1735005039481,-896.68,0.00013698,2]
[346485362,1735005039491,-153.87,0.00013699,2]
[346485365,1735005039501,-800.0,0.00013699,2]
[346485367,1735005039510,-200.0,0.00013699,2]
[346485368,1735005039519,-800.0,0.00013699,2]
[346485369,1735005039528,-800.0,0.00013699,2]
[346485370,1735005039537,-4243.0146327,0.00013743,2]
[346485371,1735005039546,-12280.44066444,0.00013743,2]
[346485372,1735005039555,-965.99536448,0.00013783,2]
[346485373,1735005039565,-341.64017581,0.0001379,2]
[346485374,1735005039574,-2011.0,0.00013794,2]
[346485375,1735005039582,-1268.929,0.00013794,2]
[346485376,1735005039594,-150.291,0.00013794,2]
[346485377,1735005039603,-633.0,0.00013794,2]
[346485378,1735005039612,-566.231,0.00013794,2]
[346485379,1735005039621,-1233.492,0.00013794,2]
[346485380,1735005039631,-1899.0,0.00013794,2]
[346485382,1735005039640,-929.324,0.00013794,2]
[346485384,1735005039649,-1372.451,0.00013794,2]
[346485386,1735005039659,-3771.0,0.00013794,2]
[346485388,1735005039669,-821.0,0.00013794,2]
[346485390,1735005039678,-3683.0,0.00013794,2]
[346485392,1735005039688,-536.0,0.00013794,2]
[346485394,1735005039697,-3888.0,0.00013794,2]
[346485396,1735005039706,-1170.0,0.00013794,2]
[346485398,1735005039716,-172.14,0.00013794,2]
[346485400,1735005039725,-669.5945367,0.0001384,2]
[346485402,1735005039734,-500.0,0.00013859,2]
[346485404,1735005039743,-2000.0,0.0001386,2]
[346485406,1735005039752,-500.0,0.0001386,2]
[346485408,1735005039761,-191.32769452,0.00013872,2]
[346485410,1735005039771,-756.09413691,0.00013872,2]
[346485412,1735005039780,-965.99536448,0.00013872,2]
[346485414,1735005039789,-172.18196127,0.00013872,2]
[346485416,1735005039799,-173.633,0.00013872,2]
[346485418,1735005039808,-273.2416,0.00013872,2]
[346485420,1735005039818,-4243.0146327,0.00013887,2]
[346485422,1735005039827,-12280.44066444,0.00013887,2]
[346485424,1735005039836,-2003.38,0.000139,2]
[346485426,1735005039845,-429.04098534,0.000139,2]
[346485428,1735005039854,-2530.69,0.00013971,2]
[346485430,1735005039864,-1039.94,0.00013971,2]
[346485432,1735005039873,-276.761865,0.00013971,2]
[346485434,1735005039883,-2869.85,0.00013971,2]
[346485436,1735005039892,-18250.33,0.00013971,2]
[346485438,1735005039902,-885.03,0.00013971,2]
[346485440,1735005039911,-2504.11,0.00013971,2]
[346485442,1735005039921,-2045.24,0.00013971,2]
[346485444,1735005039930,-1451.95,0.00013971,2]
[346485446,1735005039939,-4240.01,0.00013971,2]
[346485448,1735005039949,-701.76,0.00013971,2]
[346485450,1735005039959,-775.79,0.00013971,2]
[346485452,1735005039969,-1929.67,0.00013971,2]
[346485454,1735005039979,-1896.29,0.00013971,2]
[346485456,1735005039989,-1004.3,0.00013971,2]
[346485458,1735005039998,-3793.2,0.00013971,2]
[346485460,1735005040007,-2845.49,0.00013971,2]
[346485462,1735005040017,-1455.0,0.00013972,2]
[346485464,1735005040026,-502.78494779,0.00013972,2]
[346485466,1735005040035,-693.58,0.00013972,2]
[346485468,1735005040045,-500.0,0.00013972,2]
[346485470,1735005040054,-536.44,0.00013972,2]
[346485472,1735005040063,-500.0,0.00013972,2]
[346485474,1735005040074,-500.0,0.00013972,2]
[346485476,1735005040083,-500.0,0.00013972,2]
[346485478,1735005040094,-500.0,0.00013972,2]
[346485480,1735005040104,-350.61027542,0.00013972,2]
[346485482,1735005040113,-359.20520333,0.00013972,2]
[346485484,1735005040123,-500.0,0.00013972,2]
[346485486,1735005040132,-500.0,0.00013972,2]
[346485488,1735005040141,-500.0,0.00013972,2]
[346485490,1735005040151,-500.0,0.00013972,2]
[346485492,1735005040160,-500.0,0.00013972,2]
[346485494,1735005040170,-500.0,0.00013972,2]
[346485496,1735005040179,-500.0,0.00013972,2]
[346485498,1735005040188,-500.0,0.00013972,2]
[346485500,1735005040198,-784.02,0.00013972,2]
[346485502,1735005040208,-506.51,0.00013972,2]
[346485504,1735005040217,-503.73,0.00013972,2]
[346485506,1735005040228,-554.9,0.00013972,2]
[346485508,1735005040238,-500.0,0.00013972,2]
[346485510,1735005040247,-535.53,0.00013972,2]
[346485512,1735005040256,-612.99,0.00013972,2]
[346485514,1735005040266,-500.0,0.00013972,2]
[346485516,1735005040275,-500.0,0.00013972,2]
[346485518,1735005040285,-663.13,0.00013972,2]
[346485520,1735005040294,-500.0,0.00013972,2]
[346485522,1735005040304,-500.0,0.00013972,2]
[346485524,1735005040313,-500.0,0.00013972,2]
[346485526,1735005040323,-500.0,0.00013972,2]
[346485528,1735005040332,-520.85,0.00013972,2]
[346485530,1735005040341,-500.0,0.00013972,2]
[346485532,1735005040351,-500.0,0.00013972,2]
[346485534,1735005040360,-546.08197185,0.00013972,2]
[346485536,1735005040370,-500.0,0.00013972,2]
[346485538,1735005040380,-676.91,0.00013972,2]
[346485540,1735005040389,-500.0,0.00013972,2]
[346485542,1735005040399,-500.0,0.00013972,2]
[346485544,1735005040409,-500.0,0.00013972,2]
[346485546,1735005040419,-500.0,0.00013972,2]
[346485548,1735005040428,-935.69,0.00013972,2]
[346485550,1735005040437,-500.0,0.00013972,2]
[346485552,1735005040447,-520.07,0.00013972,2]
[346485554,1735005040456,-500.0,0.00013972,2]
[346485556,1735005040467,-500.0,0.00013972,2]
[346485559,1735005040476,-579.71,0.00013972,2]
[346485562,1735005040486,-1105.55,0.00013972,2]
[346485565,1735005040495,-764.27,0.00013972,2]
[346485567,1735005040505,-500.0,0.00013972,2]
[346485570,1735005040516,-500.0,0.00013972,2]
[346485572,1735005040525,-500.0,0.00013972,2]
[346485574,1735005040534,-528.95,0.00013972,2]
[346485576,1735005040544,-500.0,0.00013972,2]
[346485578,1735005040553,-500.0,0.00013972,2]
[346485580,1735005040562,-530.3,0.00013972,2]
[346485582,1735005040572,-500.0,0.00013972,2]
[346485583,1735005040583,-500.0,0.00013972,2]
[346485585,1735005040596,-500.0,0.00013972,2]
[346485587,1735005040605,-500.0,0.00013972,2]
[346485590,1735005040614,-500.0,0.00013972,2]
[346485592,1735005040624,-725.57,0.00013972,2]
[346485593,1735005040634,-500.0,0.00013972,2]
[346485596,1735005040643,-500.0,0.00013972,2]
[346485598,1735005040653,-733.56,0.00013972,2]
[346485600,1735005040662,-500.0,0.00013972,2]
[346485601,1735005040673,-500.0,0.00013972,2]
[346485604,1735005040683,-500.0,0.00013972,2]
[346485606,1735005040692,-621.19,0.00013972,2]
[346485607,1735005040702,-500.0,0.00013972,2]
[346485609,1735005040711,-500.0,0.00013972,2]
[346485612,1735005040725,-500.0,0.00013972,2]
[346485614,1735005040735,-523.15,0.00013972,2]
[346485616,1735005040744,-905.37,0.00013972,2]
[346485618,1735005040753,-584.17,0.00013972,2]
[346485620,1735005040762,-515.31,0.00013972,2]
[346485622,1735005040771,-699.45,0.00013972,2]
[346485624,1735005040781,-500.0,0.00013972,2]
[346485626,1735005040791,-500.0,0.00013972,2]
[346485628,1735005040800,-657.84,0.00013972,2]
[346485630,1735005040809,-500.0,0.00013972,2]
[346485632,1735005040818,-500.0,0.00013972,2]
[346485634,1735005040827,-1121.17,0.00013972,2]
[346485636,1735005040837,-1170.74,0.00013972,2]
[346485638,1735005040846,-500.0,0.00013972,2]
[346485640,1735005040855,-525.53,0.00013972,2]
[346485642,1735005040864,-500.0,0.00013972,2]
[346485644,1735005040874,-500.0,0.00013972,2]
[346485646,1735005040884,-500.0,0.00013972,2]
[346485648,1735005040893,-500.0,0.00013972,2]
[346485650,1735005040902,-500.0,0.00013972,2]
[346485652,1735005040911,-500.0,0.00013972,2]
[346485654,1735005040920,-821.89,0.00013972,2]
[346485656,1735005040929,-1429.97,0.00013972,2]
[346485658,1735005040938,-626.94,0.00013972,2]
[346485660,1735005040947,-500.0,0.00013972,2]
[346485662,1735005040956,-669.0,0.00013972,2]
[346485663,1735005040966,-502.88,0.00013972,2]
[346485665,1735005040975,-500.0,0.00013972,2]
[346485667,1735005040985,-553.16,0.00013972,2]
[346485670,1735005040995,-500.0,0.00013972,2]
[346485672,1735005041004,-1216.96,0.00013972,2]
[346485673,1735005041013,-1105.12,0.00013972,2]
[346485676,1735005041024,-500.0,0.00013972,2]
[346485678,1735005041033,-517.42,0.00013972,2]
[346485680,1735005041043,-987.19,0.00013972,2]
[346485682,1735005041052,-500.0,0.00013972,2]
[346485683,1735005041061,-500.0,0.00013972,2]
[346485685,1735005041070,-517.22,0.00013972,2]
[346485687,1735005041079,-500.0,0.00013972,2]
[346485689,1735005041088,-500.0,0.00013972,2]
[346485691,1735005041098,-500.0,0.00013972,2]
[346485693,1735005041107,-657.7,0.00013972,2]
[346485695,1735005041116,-500.0,0.00013972,2]
[346485697,1735005041126,-331.43307244,0.00013972,2]
[346485699,1735005041135,-559.52,0.00013972,2]
[346485701,1735005041144,-530.86,0.00013972,2]
[346485703,1735005041153,-704.14,0.00013972,2]
[346485705,1735005041163,-663.41,0.00013972,2]
[346485707,1735005041172,-642.7,0.00013972,2]
[346485709,1735005041181,-500.0,0.00013972,2]
[346485711,1735005041190,-1153.12,0.00013972,2]
[346485713,1735005041200,-500.0,0.00013972,2]
[346485715,1735005041209,-1169.33,0.00013972,2]
[346485717,1735005041220,-500.0,0.00013972,2]
[346485719,1735005041231,-530.3,0.00013972,2]
[346485721,1735005041240,-504.35,0.00013972,2]
[346485723,1735005041250,-665.62,0.00013972,2]
[346485725,1735005041260,-500.0,0.00013972,2]
[346485727,1735005041269,-500.0,0.00013972,2]
[346485728,1735005041278,-554.47,0.00013972,2]
[346485729,1735005041288,-500.0,0.00013972,2]
[346485730,1735005041297,-689.28,0.00013972,2]
[346485731,1735005041307,-829.86,0.00013972,2]
[346485732,1735005041316,-995.0,0.00013972,2]
[346485733,1735005041325,-746.22,0.00013972,2]
[346485734,1735005041335,-1258.73,0.00013972,2]
[346485735,1735005041345,-500.0,0.00013972,2]
[346485736,1735005041354,-500.0,0.00013972,2]
[346485737,1735005041363,-717.38,0.00013972,2]
[346485739,1735005041373,-1336.69,0.00013972,2]
[346485741,1735005041382,-892.09,0.00013972,2]
[346485743,1735005041391,-500.0,0.00013972,2]
[346485744,1735005041400,-500.0,0.00013972,2]
[346485746,1735005041410,-500.0,0.00013972,2]
[346485748,1735005041420,-500.0,0.00013972,2]
[346485750,1735005041431,-658.31,0.00013972,2]
[346485753,1735005041441,-500.0,0.00013972,2]
[346485755,1735005041451,-1015.51,0.00013972,2]
[346485757,1735005041460,-500.0,0.00013972,2]
[346485792,1735005041784,-1050.18,0.00013972,2]
[346485794,1735005041796,-1210.71,0.00013972,2]
[346485796,1735005041806,-500.0,0.00013972,2]
[346485798,1735005041816,-1562.74,0.00013972,2]
[346485800,1735005041825,-931.0,0.00013972,2]
[346485802,1735005041835,-579.93,0.00013972,2]
[346485804,1735005041844,-745.69,0.00013972,2]
[346485806,1735005041853,-908.36,0.00013972,2]
[346485808,1735005041862,-1407.32,0.00013972,2]
[346485810,1735005041871,-500.0,0.00013972,2]
[346485812,1735005041880,-500.0,0.00013972,2]
[346485814,1735005041889,-691.73,0.00013972,2]
[346485815,1735005041899,-500.0,0.00013972,2]
[346485816,1735005041908,-682.61,0.00013972,2]
[346485817,1735005041917,-500.0,0.00013972,2]
[346485818,1735005041927,-1172.67,0.00013972,2]
[346485820,1735005041936,-500.0,0.00013972,2]
[346485822,1735005041945,-741.28,0.00013972,2]
[346485824,1735005041955,-794.62,0.00013972,2]
[346485825,1735005041964,-500.0,0.00013972,2]
[346485826,1735005041975,-517.58,0.00013972,2]
[346485827,1735005041984,-844.41,0.00013972,2]
[346485828,1735005041994,-500.0,0.00013972,2]
[346485829,1735005042003,-923.0,0.00013972,2]
[346485830,1735005042013,-695.3,0.00013972,2]
[346485831,1735005042023,-500.0,0.00013972,2]
[346485832,1735005042031,-500.0,0.00013972,2]
[346485833,1735005042041,-666.92,0.00013972,2]
[346485834,1735005042050,-520.63,0.00013972,2]
[346485835,1735005042059,-569.54,0.00013972,2]
[346485836,1735005042068,-653.23,0.00013972,2]
[346485837,1735005042078,-500.0,0.00013972,2]
[346485838,1735005042087,-500.0,0.00013972,2]
[346485839,1735005042096,-500.0,0.00013972,2]
[346485840,1735005042106,-1450.43,0.00013972,2]
[346485841,1735005042116,-151.0,0.00013972,2]
[346485842,1735005042125,-151.0,0.00013972,2]
[346485843,1735005042135,-151.0,0.00013972,2]
[346485844,1735005042144,-577.62,0.00013972,2]
[346485845,1735005042153,-500.0,0.00013972,2]
[346485846,1735005042163,-911.31,0.00013972,2]
[346485847,1735005042173,-500.0,0.00013972,2]
[346485848,1735005042183,-500.0,0.00013972,2]
[346485849,1735005042192,-1135.03,0.00013972,2]
[346485850,1735005042202,-500.0,0.00013972,2]
[346485851,1735005042212,-551.6,0.00013972,2]
[346485852,1735005042224,-698.7,0.00013972,2]
[346485853,1735005042234,-500.0,0.00013972,2]